[Event "EIRCC 2019"]
[Site "Tallinn"]
[Date "2019.12.05"]
[Round "7.29"]
[White "Lazavik, Denis"]
[Black "Shishkov, Andrei"]
[Result "1-0"]
[ECO "D30"]
[WhiteElo "2201"]
[BlackElo "2352"]
[Annotator "NA"]
[PlyCount "79"]
[EventDate "2019.12.05"]
[EventType "swiss"]
[EventCountry "EST"]
[SourceTitle "playchess.com"]
[Source "ChessBase"]
[SourceQuality "1"]
[TimeControl "900+10"]

1. d4 {[%emt 0:00:00]} d5 {[%emt 0:00:00]} 2. c4 {[%emt 0:00:00]} e6 {[%emt 0:00:00]} 3. Nf3 {[%emt 0:00:01]} a6 {[%emt 0:00:00]} 4. cxd5 {[%emt 0:00:05]} exd5 {[%emt 0:00:00]} 5. Nc3 {[%emt 0:00:04]} Nf6 {[%emt 0:00:00]} 6. Bg5 {[%emt 0:00:02]} Be6 {[%emt 0:00:00]} 7. e3 {[%emt 0:00:02]} Nbd7 {[%emt 0:00:00]} 8. Bd3 {[%emt 0:00:02]} Bd6 {[%emt 0:00:03]} 9. O-O {[%emt 0:00:07]} c6 {[%emt 0:00:18]} 10. Bf4 {[%emt 0:00:11]} Qc7 {[%emt 0:00:17]} 11. Bxd6 {[%emt 0:00:06]} Qxd6 {[%emt 0:00:02]} 12. Qc2 {[%emt 0:00:10]} Bg4 {[%emt 0:00:50]} 13. Nh4 {[%emt 0:02:08]} O-O {[%emt 0:01:09]} 14. f4 {[%emt 0:00:11]} Qe7 {[%emt 0:02:08]} 15. Qf2 {[%emt 0:00:16]} Ne4 {[%emt 0:00:18]} 16. Bxe4 {[%emt 0:00:06]} dxe4 {[%emt 0:00:09]} 17. f5 {[%emt 0:06:26]} g5 {[%emt 0:01:07]} 18. f6 {[%emt 0:00:03]} Qe6 {[%emt 0:01:32]} 19. Nf5 {[%emt 0:00:03]} Qxf6 {[%emt 0:03:42]} 20. Nxe4 {[%emt 0:00:06]} Qxf5 {[%emt 0:00:02]} 21. Qxf5 {[%emt 0:00:02]} Bxf5 {[%emt 0:00:01]} 22. Rxf5 {[%emt 0:00:02]} f6 {[%emt 0:01:19]} 23. Nd6 {[%emt 0:00:04]} b6 {[%emt 0:00:39]} 24. e4 {[%emt 0:00:14]} c5 {[%emt 0:00:47]} 25. e5 {[%emt 0:00:09]} cxd4 {[%emt 0:01:09]} 26. e6 {[%emt 0:00:02]} Ne5 {[%emt 0:00:17]} 27. e7 {[%emt 0:00:06]} Rfe8 {[%emt 0:00:13]} 28. Nxe8 {[%emt 0:00:11]} Rxe8 {[%emt 0:00:02]} 29. Rxf6 {[%emt 0:00:02]} Rxe7 {[%emt 0:00:27]} 30. Rd1 {[%emt 0:00:05]} d3 {[%emt 0:00:54]} 31. Rxb6 {[%emt 0:00:08]} Ng4 {[%emt 0:00:58]} 32. Rd6 {[%emt 0:00:12]} Re2 {[%emt 0:00:11]} 33. R6xd3 {[%emt 0:00:07]} Rxb2 {[%emt 0:00:19]} 34. R3d2 {[%emt 0:00:02]} Rb6 {[%emt 0:00:22]} 35. Rd7 {[%emt 0:00:16]} Rb2 {[%emt 0:00:35]} 36. Rc1 {[%emt 0:00:12]} Rb8 {[%emt 0:00:12]} 37. Rdc7 {[%emt 0:00:08]} Rb2 {[%emt 0:00:05]} 38. Ra7 {[%emt 0:00:15]} Rb8 {[%emt 0:00:12]} 39. Rxa6 {[%emt 0:00:10]} Ne3 {[%emt 0:00:09]} 40. Re6 {[%emt 0:00:09]} 1-0

[Event "EIRCC 2019"]
[Site "Tallinn"]
[Date "2019.12.05"]
[Round "7.30"]
[White "Duzhakov, Ilya"]
[Black "Silich, Yahor"]
[Result "1/2-1/2"]
[ECO "E61"]
[WhiteElo "2351"]
[BlackElo "1975"]
[Annotator "NA"]
[PlyCount "97"]
[EventDate "2019.12.05"]
[EventType "swiss"]
[EventCountry "EST"]
[SourceTitle "playchess.com"]
[Source "ChessBase"]
[SourceQuality "1"]
[TimeControl "900+10"]

1. d4 {[%emt 0:00:00]} Nf6 {[%emt 0:00:00]} 2. c4 {[%emt 0:00:00]} g6 {[%emt 0:00:00]} 3. Nc3 {[%emt 0:00:00]} Bg7 {[%emt 0:00:00]} 4. Bg5 {[%emt 0:00:09]} O-O {[%emt 0:00:00]} 5. e3 {[%emt 0:00:01]} c5 {[%emt 0:00:00]} 6. Nf3 {[%emt 0:00:20]} cxd4 {[%emt 0:00:00]} 7. exd4 {[%emt 0:00:09]} d5 {[%emt 0:00:01]} 8. Bxf6 {[%emt 0:00:56]} Bxf6 {[%emt 0:00:01]} 9. Nxd5 {[%emt 0:00:02]} Bg7 {[%emt 0:00:01]} 10. Be2 {[%emt 0:00:19]} Nc6 {[%emt 0:00:13]} 11. Qd2 {[%emt 0:00:10]} e6 {[%emt 0:00:26]} 12. Nc3 {[%emt 0:00:02]} Nxd4 {[%emt 0:00:10]} 13. Nxd4 {[%emt 0:00:06]} Qxd4 {[%emt 0:00:27]} 14. Qxd4 {[%emt 0:01:16]} Bxd4 {[%emt 0:00:01]} 15. Bf3 {[%emt 0:00:02]} e5 {[%emt 0:00:51]} 16. Rc1 {[%emt 0:00:26]} Bf5 {[%emt 0:02:20]} 17. b3 {[%emt 0:00:18]} e4 {[%emt 0:00:54]} 18. Be2 {[%emt 0:00:06]} e3 {[%emt 0:00:20]} 19. f4 {[%emt 0:01:06]} Rad8 {[%emt 0:01:42]} 20. Nd5 {[%emt 0:00:51]} Bb2 {[%emt 0:01:54]} 21. Rd1 {[%emt 0:01:26]} Bc2 {[%emt 0:00:10]} 22. Ne7+ {[%emt 0:00:07]} Kg7 {[%emt 0:00:23]} 23. Rxd8 {[%emt 0:00:05]} Bc3+ {[%emt 0:00:46]} 24. Kf1 {[%emt 0:00:02]} Rxd8 {[%emt 0:00:01]} 25. Nd5 {[%emt 0:00:03]} Bd2 {[%emt 0:00:21]} 26. h4 {[%emt 0:02:53]} Be4 {[%emt 0:05:06]} 27. Bf3 {[%emt 0:00:20]} Bxf3 {[%emt 0:00:03]} 28. gxf3 {[%emt 0:00:03]} b5 {[%emt 0:00:01]} 29. Ke2 {[%emt 0:00:16]} bxc4 {[%emt 0:00:07]} 30. bxc4 {[%emt 0:00:02]} Rc8 {[%emt 0:00:04]} 31. Kd3 {[%emt 0:00:14]} Rc5 {[%emt 0:00:58]} 32. Rb1 {[%emt 0:01:04]} Ra5 {[%emt 0:01:10]} 33. Rb2 {[%emt 0:00:20]} Ra3+ {[%emt 0:00:16]} 34. Ke2 {[%emt 0:00:04]} Ra4 {[%emt 0:00:21]} 35. Rc2 {[%emt 0:00:06]} Ra6 {[%emt 0:00:56]} 36. c5 {[%emt 0:02:16]} Rc6 {[%emt 0:00:01]} 37. a3 {[%emt 0:00:07]} Kf8 {[%emt 0:00:43]} 38. Nxe3 {[%emt 0:01:08]} Bxe3 {[%emt 0:00:03]} 39. Kxe3 {[%emt 0:00:02]} Ke7 {[%emt 0:00:01]} 40. a4 {[%emt 0:00:22]} Kd7 {[%emt 0:00:07]} 41. Kd4 {[%emt 0:00:08]} Rf6 {[%emt 0:00:06]} 42. Ke4 {[%emt 0:03:46]} Kc6 {[%emt 0:00:04]} 43. h5 {[%emt 0:00:10]} gxh5 {[%emt 0:00:38]} 44. Rh2 {[%emt 0:00:06]} Rh6 {[%emt 0:00:00]} 45. Kf5 {[%emt 0:00:13]} Kxc5 {[%emt 0:00:04]} 46. Kg5 {[%emt 0:00:04]} Rg6+ {[%emt 0:00:15]} 47. Kf5 {[%emt 0:00:02]} Rh6 {[%emt 0:00:02]} 48. Kg5 {[%emt 0:00:01]} Rg6+ {[%emt 0:00:06]} 49. Kf5 {[%emt 0:00:02]} 1/2-1/2

[Event "EIRCC 2019"]
[Site "Tallinn"]
[Date "2019.12.05"]
[Round "7.32"]
[White "Wallin, Aleksi"]
[Black "Popov, Valerij"]
[Result "1-0"]
[ECO "E20"]
[WhiteElo "2219"]
[BlackElo "2583"]
[Annotator "ChessBase"]
[PlyCount "73"]
[EventDate "2019.12.05"]
[EventType "swiss"]
[EventCountry "EST"]
[SourceTitle "playchess.com"]
[Source "ChessBase"]
[SourceQuality "1"]
[TimeControl "900+10"]

1. d4 {[%emt 0:00:00]} Nf6 {[%emt 0:00:00]} 2. c4 {[%emt 0:00:00]} e6 {[%emt 0:00:00]} 3. Nc3 {[%emt 0:00:07]} Bb4 {[%emt 0:00:00]} 4. f3 {[%emt 0:00:13]} Nc6 {[%emt 0:01:26]} 5. Bg5 {[%emt 0:02:42]} h6 {[%emt 0:01:39]} 6. Bh4 {[%emt 0:00:01]} O-O {[%emt 0:01:23]} 7. e4 {[%emt 0:00:47]} e5 {[%emt 0:00:01]} 8. d5 {[%emt 0:00:13]} Nd4 {[%emt 0:00:07]} 9. Nge2 {[%emt 0:00:23]} c5 {[%emt 0:00:04]} 10. dxc6 {[%emt 0:00:20]} dxc6 {[%emt 0:00:07]} 11. a3 {[%emt 0:01:33]} Be7 {[%emt 0:02:11]} 12. Bg3 {[%emt 0:01:37]} Nxe2 {[%emt 0:00:08]} 13. Bxe2 {[%emt 0:00:11]} Qc7 {[%emt 0:00:10]} 14. Bf2 {[%emt 0:01:12]} Nd7 {[%emt 0:00:25]} 15. b4 {[%emt 0:01:29]} Rd8 {[%emt 0:00:08]} 16. Qb3 {[%emt 0:00:25]} Nf8 {[%emt 0:00:07]} 17. O-O {[%emt 0:00:18]} Ne6 {[%emt 0:00:04]} 18. Rfd1 {[%emt 0:00:09]} Nd4 {[%emt 0:00:02]} 19. Qb2 {[%emt 0:00:01]} Be6 {[%emt 0:02:24]} 20. Bf1 {[%emt 0:00:20]} b6 {[%emt 0:00:25]} 21. Rac1 {[%emt 0:00:59]} Bg5 {[%emt 0:00:35]} 22. Rb1 {[%emt 0:00:12]} Rd7 {[%emt 0:00:17]} 23. b5 {[%emt 0:00:43]} cxb5 {[%emt 0:02:52]} 24. Nxb5 {[%emt 0:00:22]} Nxb5 {[%emt 0:00:15]} 25. Rxd7 {[%emt 0:00:25]} Bxd7 {[%emt 0:00:07]} 26. cxb5 {[%emt 0:00:02]} Rc8 {[%emt 0:00:18]} 27. a4 {[%emt 0:01:11]} Be6 {[%emt 0:00:43]} 28. h4 {[%emt 0:00:39]} Bc1 {[%emt 0:00:09]} 29. Qe2 {[%emt 0:00:10]} h5 {[%emt 0:01:20]} 30. g3 {[%emt 0:01:31]} g6 {[%emt 0:00:10]} 31. Kh2 {[%emt 0:00:23]} Kg7 {[%emt 0:00:31]} 32. Bg2 {[%emt 0:00:54]} Qc3 {[%emt 0:00:27]} 33. Be1 {[%emt 0:00:27]} Qa3 {[%emt 0:00:27]} 34. Qd1 {[%emt 0:00:19]} Bb2 {[%emt 0:01:03]} 35. Qd2 {[%emt 0:00:17]} Bd4 {[%emt 0:00:28]} 36. Qb4 {[%emt 0:00:06]} Qa2 {[%emt 0:00:12]} 37. Rd1 {[%emt 0:00:16]} 1-0

[Event "EIRCC 2019"]
[Site "Tallinn"]
[Date "2019.12.05"]
[Round "7.33"]
[White "Chibukhchyan, Erik"]
[Black "Pershin, Denis"]
[Result "1-0"]
[ECO "D12"]
[WhiteElo "2211"]
[BlackElo "2509"]
[Annotator "ChessBase"]
[PlyCount "77"]
[EventDate "2019.12.05"]
[EventType "swiss"]
[EventCountry "EST"]
[SourceTitle "playchess.com"]
[Source "ChessBase"]
[SourceQuality "1"]
[TimeControl "900+10"]

1. d4 {[%emt 0:00:06]} Nf6 {[%emt 0:00:00]} 2. Nf3 {[%emt 0:00:02]} d5 {[%emt 0:00:00]} 3. e3 {[%emt 0:00:07]} c6 {[%emt 0:00:12]} 4. c4 {[%emt 0:00:02]} Bf5 {[%emt 0:00:02]} 5. Nc3 {[%emt 0:00:14]} e6 {[%emt 0:00:01]} 6. Nh4 {[%emt 0:00:04]} Be4 {[%emt 0:00:02]} 7. f3 {[%emt 0:00:01]} Bg6 {[%emt 0:00:01]} 8. Nxg6 {[%emt 0:00:01]} hxg6 {[%emt 0:00:02]} 9. Qb3 {[%emt 0:00:47]} Qc7 {[%emt 0:00:04]} 10. g3 {[%emt 0:00:43]} Bd6 {[%emt 0:00:02]} 11. f4 {[%emt 0:00:12]} g5 {[%emt 0:01:09]} 12. Bg2 {[%emt 0:01:18]} g4 {[%emt 0:00:25]} 13. Bd2 {[%emt 0:00:37]} Nbd7 {[%emt 0:00:01]} 14. O-O-O {[%emt 0:00:06]} O-O-O {[%emt 0:00:08]} 15. e4 {[%emt 0:02:38]} dxe4 {[%emt 0:00:03]} 16. Nxe4 {[%emt 0:00:01]} Nxe4 {[%emt 0:00:02]} 17. Bxe4 {[%emt 0:00:02]} Rh5 {[%emt 0:00:33]} 18. Qe3 {[%emt 0:02:11]} Rdh8 {[%emt 0:00:57]} 19. Qe2 {[%emt 0:00:02]} Nf6 {[%emt 0:00:09]} 20. Bc2 {[%emt 0:00:08]} c5 {[%emt 0:01:38]} 21. dxc5 {[%emt 0:00:12]} Rxc5 {[%emt 0:01:22]} 22. Be3 {[%emt 0:01:24]} Rc6 {[%emt 0:00:29]} 23. Kb1 {[%emt 0:00:20]} Bc5 {[%emt 0:00:03]} 24. Bc1 {[%emt 0:03:37]} Rd6 {[%emt 0:02:37]} 25. Rxd6 {[%emt 0:00:11]} Qxd6 {[%emt 0:00:05]} 26. Rd1 {[%emt 0:00:11]} Qc6 {[%emt 0:00:42]} 27. f5 {[%emt 0:00:13]} Qf3 {[%emt 0:00:14]} 28. Qe5 {[%emt 0:00:02]} Qc6 {[%emt 0:02:46]} 29. fxe6 {[%emt 0:00:44]} fxe6 {[%emt 0:00:08]} 30. Bf4 {[%emt 0:00:05]} Nd7 {[%emt 0:00:33]} 31. Rxd7 {[%emt 0:00:45]} Kxd7 {[%emt 0:00:01]} 32. Qxg7+ {[%emt 0:00:02]} Be7 {[%emt 0:00:01]} 33. Qxh8 {[%emt 0:00:35]} Qh1+ {[%emt 0:01:13]} 34. Bc1 {[%emt 0:00:02]} Bc5 {[%emt 0:00:07]} 35. Qh7+ {[%emt 0:00:22]} Kc8 {[%emt 0:00:10]} 36. Qe4 {[%emt 0:00:13]} Qxe4 {[%emt 0:00:56]} 37. Bxe4 {[%emt 0:00:02]} Bg1 {[%emt 0:00:02]} 38. Bf4 {[%emt 0:00:04]} Bxh2 {[%emt 0:00:02]} 39. Kc2 {[%emt 0:00:21]} 1-0

[Event "EIRCC 2019"]
[Site "Tallinn"]
[Date "2019.12.05"]
[Round "7.34"]
[White "Thorfinnsson, Bragi"]
[Black "Schnabel, Ralf"]
[Result "1-0"]
[ECO "B04"]
[WhiteElo "2457"]
[BlackElo "2220"]
[Annotator "ChessBase"]
[PlyCount "91"]
[EventDate "2019.12.05"]
[EventType "swiss"]
[EventCountry "EST"]
[SourceTitle "playchess.com"]
[Source "ChessBase"]
[SourceQuality "1"]
[TimeControl "900+10"]

1. e4 Nf6 {[%emt 0:01:36]} 2. e5 {[%emt 0:00:37]} Nd5 {[%emt 0:00:02]} 3. d4 {[%emt 0:00:20]} d6 {[%emt 0:00:03]} 4. Nf3 {[%emt 0:00:02]} g6 {[%emt 0:00:01]} 5. Bc4 {[%emt 0:00:36]} Nb6 {[%emt 0:00:02]} 6. Bb3 {[%emt 0:00:02]} Bg7 {[%emt 0:00:02]} 7. a4 {[%emt 0:00:27]} a5 {[%emt 0:00:14]} 8. Qe2 {[%emt 0:00:31]} O-O {[%emt 0:00:15]} 9. h3 {[%emt 0:00:07]} Nc6 {[%emt 0:00:14]} 10. O-O {[%emt 0:00:20]} dxe5 {[%emt 0:01:00]} 11. dxe5 {[%emt 0:00:16]} Nd4 {[%emt 0:00:03]} 12. Nxd4 {[%emt 0:00:19]} Qxd4 {[%emt 0:00:02]} 13. Re1 {[%emt 0:00:09]} Be6 {[%emt 0:01:05]} 14. Nc3 {[%emt 0:01:30]} Bxb3 {[%emt 0:00:43]} 15. cxb3 {[%emt 0:00:01]} Qb4 {[%emt 0:02:39]} 16. Qc2 {[%emt 0:02:05]} Rfd8 {[%emt 0:00:27]} 17. Be3 {[%emt 0:00:23]} Nd5 {[%emt 0:01:50]} 18. Bd2 {[%emt 0:03:05]} Qc5 {[%emt 0:00:21]} 19. Qe4 {[%emt 0:01:04]} c6 {[%emt 0:01:07]} 20. Rad1 {[%emt 0:00:24]} Nb4 {[%emt 0:02:16]} 21. Be3 {[%emt 0:00:40]} Qxe5 {[%emt 0:00:05]} 22. Rxd8+ {[%emt 0:00:07]} Rxd8 {[%emt 0:00:01]} 23. Qxe5 {[%emt 0:00:01]} Bxe5 {[%emt 0:00:02]} 24. Bb6 {[%emt 0:00:02]} Bxc3 {[%emt 0:00:01]} 25. bxc3 {[%emt 0:00:12]} Nc2 {[%emt 0:02:11]} 26. Rxe7 {[%emt 0:00:58]} Rd1+ {[%emt 0:00:54]} 27. Kh2 {[%emt 0:00:01]} Rb1 {[%emt 0:00:01]} 28. b4 {[%emt 0:01:06]} axb4 {[%emt 0:00:05]} 29. cxb4 {[%emt 0:00:02]} Rxb4 {[%emt 0:00:15]} 30. a5 {[%emt 0:00:06]} Rb5 {[%emt 0:01:14]} 31. Rxb7 {[%emt 0:00:10]} Nb4 {[%emt 0:00:01]} 32. Rb8+ {[%emt 0:00:50]} Kg7 {[%emt 0:00:02]} 33. Bd4+ {[%emt 0:00:02]} Kh6 {[%emt 0:00:01]} 34. Rxb5 {[%emt 0:00:37]} cxb5 {[%emt 0:00:01]} 35. f4 {[%emt 0:00:20]} f5 {[%emt 0:00:14]} 36. Bf6 {[%emt 0:00:40]} Kh5 {[%emt 0:00:13]} 37. Kg3 {[%emt 0:00:03]} h6 {[%emt 0:00:03]} 38. Kf3 {[%emt 0:00:23]} g5 {[%emt 0:00:02]} 39. Be7 {[%emt 0:00:22]} Na6 {[%emt 0:00:43]} 40. Ke3 {[%emt 0:00:04]} b4 {[%emt 0:00:21]} 41. Kd3 {[%emt 0:00:11]} Kg6 {[%emt 0:00:34]} 42. Kc4 {[%emt 0:00:06]} gxf4 {[%emt 0:00:14]} 43. Bxb4 {[%emt 0:00:09]} f3 {[%emt 0:00:10]} 44. gxf3 {[%emt 0:00:02]} Kg5 {[%emt 0:00:01]} 45. Bd6 {[%emt 0:00:04]} Kh4 {[%emt 0:00:01]} 46. Kb5 {[%emt 0:00:01]} 1-0

[Event "EIRCC 2019"]
[Site "Tallinn"]
[Date "2019.12.05"]
[Round "7.35"]
[White "Galopoulos, Nikolaos"]
[Black "Opryshko, Stanislav"]
[Result "1-0"]
[ECO "A56"]
[WhiteElo "2439"]
[BlackElo "2205"]
[Annotator "NA"]
[PlyCount "69"]
[EventDate "2019.12.05"]
[EventType "swiss"]
[EventCountry "EST"]
[SourceTitle "playchess.com"]
[Source "ChessBase"]
[SourceQuality "1"]
[TimeControl "900+10"]

1. d4 {[%emt 0:00:00]} Nf6 {[%emt 0:00:00]} 2. c4 {[%emt 0:00:00]} c5 {[%emt 0:00:00]} 3. Nf3 {[%emt 0:00:00]} cxd4 {[%emt 0:00:02]} 4. Nxd4 {[%emt 0:00:00]} e5 {[%emt 0:00:02]} 5. Nb5 {[%emt 0:00:00]} d5 {[%emt 0:00:02]} 6. cxd5 {[%emt 0:00:07]} Bc5 {[%emt 0:00:02]} 7. N5c3 {[%emt 0:00:00]} O-O {[%emt 0:00:07]} 8. g3 {[%emt 0:00:00]} Qb6 {[%emt 0:00:56]} 9. e3 {[%emt 0:00:00]} Bg4 {[%emt 0:00:08]} 10. Be2 {[%emt 0:00:00]} Bh3 {[%emt 0:00:06]} 11. g4 {[%emt 0:01:19]} Rd8 {[%emt 0:01:45]} 12. Rg1 {[%emt 0:00:05]} h5 {[%emt 0:01:28]} 13. g5 {[%emt 0:00:21]} Ne8 {[%emt 0:01:04]} 14. Bxh5 {[%emt 0:00:02]} Bf5 {[%emt 0:01:17]} 15. Nd2 {[%emt 0:01:16]} Bxe3 {[%emt 0:01:39]} 16. fxe3 {[%emt 0:00:02]} Qxe3+ {[%emt 0:00:01]} 17. Ne2 {[%emt 0:00:01]} Na6 {[%emt 0:02:11]} 18. Qb3 {[%emt 0:00:45]} Qc5 {[%emt 0:00:17]} 19. Nc4 {[%emt 0:01:13]} Rac8 {[%emt 0:01:45]} 20. Ne3 {[%emt 0:00:05]} Nb4 {[%emt 0:00:23]} 21. Nxf5 {[%emt 0:00:40]} Nc2+ {[%emt 0:00:04]} 22. Kf1 {[%emt 0:00:01]} Nxa1 {[%emt 0:00:05]} 23. Qf3 {[%emt 0:00:20]} Rc7 {[%emt 0:01:18]} 24. Nh6+ {[%emt 0:01:31]} gxh6 {[%emt 0:01:38]} 25. gxh6+ {[%emt 0:00:02]} Kh8 {[%emt 0:00:03]} 26. Bxf7 {[%emt 0:02:27]} Qf8 {[%emt 0:00:40]} 27. Rg8+ {[%emt 0:00:02]} Qxg8 {[%emt 0:00:03]} 28. Bxg8 {[%emt 0:00:00]} Kxg8 {[%emt 0:00:10]} 29. Qg3+ {[%emt 0:00:02]} Kf8 {[%emt 0:00:11]} 30. Qxe5 {[%emt 0:00:12]} Rf7+ {[%emt 0:00:08]} 31. Kg1 {[%emt 0:00:12]} Nf6 {[%emt 0:00:18]} 32. Nf4 {[%emt 0:00:04]} Re8 {[%emt 0:00:45]} 33. Ne6+ {[%emt 0:00:34]} Kg8 {[%emt 0:00:01]} 34. Bg5 {[%emt 0:00:13]} Ng4 {[%emt 0:00:35]} 35. Qe4 {[%emt 0:00:15]} 1-0

[Event "EIRCC 2019"]
[Site "Tallinn"]
[Date "2019.12.05"]
[Round "7.36"]
[White "Studer, Noel"]
[Black "Brendel, Oliver"]
[Result "1-0"]
[ECO "D85"]
[WhiteElo "2405"]
[BlackElo "2203"]
[Annotator "NA"]
[PlyCount "69"]
[EventDate "2019.12.05"]
[EventType "swiss"]
[EventCountry "EST"]
[SourceTitle "playchess.com"]
[Source "ChessBase"]
[SourceQuality "1"]
[TimeControl "900+10"]

1. d4 {[%emt 0:00:00]} Nf6 {[%emt 0:00:13]} 2. c4 {[%emt 0:00:00]} g6 {[%emt 0:00:03]} 3. Nc3 {[%emt 0:00:00]} d5 {[%emt 0:00:04]} 4. cxd5 {[%emt 0:00:00]} Nxd5 {[%emt 0:00:01]} 5. e4 {[%emt 0:00:00]} Nxc3 {[%emt 0:00:03]} 6. bxc3 {[%emt 0:00:00]} Bg7 {[%emt 0:00:06]} 7. Qa4+ {[%emt 0:00:04]} Nd7 {[%emt 0:00:28]} 8. Nf3 {[%emt 0:00:03]} O-O {[%emt 0:00:40]} 9. Be2 {[%emt 0:00:01]} c5 {[%emt 0:00:08]} 10. O-O {[%emt 0:00:03]} cxd4 {[%emt 0:00:11]} 11. cxd4 {[%emt 0:00:01]} Nc5 {[%emt 0:00:11]} 12. dxc5 {[%emt 0:00:23]} Bxa1 {[%emt 0:00:10]} 13. e5 {[%emt 0:00:15]} Qd7 {[%emt 0:03:18]} 14. Qh4 {[%emt 0:01:30]} Qg4 {[%emt 0:05:58]} 15. Qxe7 {[%emt 0:00:23]} Qe6 {[%emt 0:00:02]} 16. Qh4 {[%emt 0:00:35]} Qg4 {[%emt 0:00:02]} 17. Qh6 {[%emt 0:01:01]} Qh5 {[%emt 0:00:43]} 18. Qxh5 {[%emt 0:04:16]} gxh5 {[%emt 0:00:02]} 19. Bh6 {[%emt 0:00:01]} Bc3 {[%emt 0:00:13]} 20. Rc1 {[%emt 0:02:17]} Bb4 {[%emt 0:00:11]} 21. Bxf8 {[%emt 0:00:41]} Kxf8 {[%emt 0:00:01]} 22. h3 {[%emt 0:00:08]} Be6 {[%emt 0:00:18]} 23. Bc4 {[%emt 0:00:25]} Ke7 {[%emt 0:02:41]} 24. Bxe6 {[%emt 0:01:32]} Kxe6 {[%emt 0:00:03]} 25. c6 {[%emt 0:00:28]} Rc8 {[%emt 0:01:36]} 26. Rb1 {[%emt 0:00:01]} a5 {[%emt 0:00:28]} 27. cxb7 {[%emt 0:03:23]} Rb8 {[%emt 0:00:02]} 28. Rb3 {[%emt 0:00:04]} Kd5 {[%emt 0:00:31]} 29. Ng5 {[%emt 0:00:39]} Kxe5 {[%emt 0:00:30]} 30. a3 {[%emt 0:00:21]} Rxb7 {[%emt 0:00:39]} 31. Kf1 {[%emt 0:00:43]} a4 {[%emt 0:00:18]} 32. Rb1 {[%emt 0:00:06]} Kf5 {[%emt 0:00:12]} 33. Nf3 {[%emt 0:00:04]} Rb6 {[%emt 0:00:06]} 34. axb4 {[%emt 0:00:08]} a3 {[%emt 0:00:03]} 35. Ra1 {[%emt 0:00:01]} 1-0

[Event "EIRCC 2019"]
[Site "Tallinn"]
[Date "2019.12.06"]
[Round "8.1"]
[White "Esipenko, Andrey"]
[Black "Yuffa, Daniil"]
[Result "0-1"]
[ECO "E97"]
[WhiteElo "2590"]
[BlackElo "2587"]
[Annotator "ChessBase"]
[PlyCount "84"]
[EventDate "2019.12.05"]
[EventType "swiss"]
[EventCountry "EST"]
[SourceTitle "playchess.com"]
[Source "ChessBase"]
[SourceQuality "1"]
[TimeControl "900+10"]

1. d4 {[%emt 0:00:00]} Nf6 {[%emt 0:00:00]} 2. c4 {[%emt 0:00:00]} g6 {[%emt 0:00:00]} 3. Nc3 {[%emt 0:00:00]} Bg7 {[%emt 0:00:00]} 4. e4 {[%emt 0:00:00]} d6 {[%emt 0:00:00]} 5. Nf3 {[%emt 0:00:03]} O-O {[%emt 0:00:00]} 6. Be2 {[%emt 0:00:02]} e5 {[%emt 0:00:00]} 7. O-O {[%emt 0:00:03]} Nc6 {[%emt 0:00:00]} 8. d5 {[%emt 0:00:02]} Ne7 {[%emt 0:00:02]} 9. b4 {[%emt 0:00:03]} Nh5 {[%emt 0:00:11]} 10. Re1 {[%emt 0:00:01]} a5 {[%emt 0:00:12]} 11. bxa5 {[%emt 0:00:02]} Rxa5 {[%emt 0:00:03]} 12. a4 {[%emt 0:00:01]} f5 {[%emt 0:01:50]} 13. Bd2 {[%emt 0:00:22]} Nf4 {[%emt 0:01:43]} 14. Bf1 {[%emt 0:00:38]} fxe4 {[%emt 0:00:29]} 15. Nxe4 {[%emt 0:00:06]} Ra8 {[%emt 0:00:01]} 16. Ra3 {[%emt 0:00:25]} Kh8 {[%emt 0:02:10]} 17. g3 {[%emt 0:02:31]} Nh3+ {[%emt 0:00:22]} 18. Kg2 {[%emt 0:00:02]} h6 {[%emt 0:02:34]} 19. Bc1 {[%emt 0:02:14]} Bg4 {[%emt 0:02:19]} 20. Be2 {[%emt 0:00:45]} Bf5 {[%emt 0:01:17]} 21. Nfd2 {[%emt 0:05:07]} Qc8 {[%emt 0:00:01]} 22. Bf3 {[%emt 0:00:41]} b6 {[%emt 0:00:26]} 23. Kh1 {[%emt 0:01:10]} Ng8 {[%emt 0:00:26]} 24. Rf1 {[%emt 0:00:13]} Nf6 {[%emt 0:01:09]} 25. Nxf6 {[%emt 0:00:10]} Rxf6 {[%emt 0:00:04]} 26. Bg2 {[%emt 0:00:13]} Ng5 {[%emt 0:02:33]} 27. h4 {[%emt 0:00:09]} Nh7 {[%emt 0:00:01]} 28. Ne4 {[%emt 0:00:17]} Rf8 {[%emt 0:00:07]} 29. Be3 {[%emt 0:00:41]} Nf6 {[%emt 0:00:02]} 30. Nxf6 {[%emt 0:00:16]} Rxf6 {[%emt 0:00:01]} 31. Qd2 {[%emt 0:00:19]} Kh7 {[%emt 0:00:06]} 32. a5 {[%emt 0:00:23]} Bh3 {[%emt 0:00:49]} 33. Rfa1 {[%emt 0:01:57]} Bxg2+ {[%emt 0:00:06]} 34. Kxg2 {[%emt 0:00:01]} bxa5 {[%emt 0:00:47]} 35. Rxa5 {[%emt 0:00:02]} Rxa5 {[%emt 0:00:01]} 36. Qxa5 {[%emt 0:00:04]} Rf7 {[%emt 0:00:08]} 37. Qd2 {[%emt 0:01:14]} Qg4 {[%emt 0:00:10]} 38. Qc2 {[%emt 0:00:14]} e4 {[%emt 0:00:14]} 39. Re1 {[%emt 0:00:14]} Be5 {[%emt 0:00:20]} 40. c5 {[%emt 0:00:40]} Rf3 {[%emt 0:00:31]} 41. cxd6 {[%emt 0:00:02]} Bxd6 {[%emt 0:00:01]} 42. Bf4 {[%emt 0:00:19]} Rxf4 {[%emt 0:00:03]} 0-1

[Event "EIRCC 2019"]
[Site "Tallinn"]
[Date "2019.12.06"]
[Round "8.7"]
[White "Stupak, Kirill"]
[Black "Sebenik, Matej"]
[Result "1/2-1/2"]
[ECO "D56"]
[WhiteElo "2552"]
[BlackElo "2504"]
[Annotator "ChessBase"]
[PlyCount "41"]
[EventDate "2019.12.05"]
[EventType "swiss"]
[EventCountry "EST"]
[SourceTitle "playchess.com"]
[Source "ChessBase"]
[SourceQuality "1"]
[TimeControl "900+10"]

1. d4 {[%emt 0:00:00]} Nf6 {[%emt 0:00:00]} 2. c4 {[%emt 0:00:00]} e6 {[%emt 0:00:00]} 3. Nf3 {[%emt 0:00:00]} d5 {[%emt 0:00:00]} 4. Bg5 {[%emt 0:00:18]} Be7 {[%emt 0:00:02]} 5. e3 {[%emt 0:00:04]} O-O {[%emt 0:00:10]} 6. Nc3 {[%emt 0:00:26]} h6 {[%emt 0:00:03]} 7. Bh4 {[%emt 0:00:01]} Nbd7 {[%emt 0:00:20]} 8. Rc1 {[%emt 0:00:52]} c5 {[%emt 0:00:33]} 9. cxd5 {[%emt 0:01:03]} Nxd5 {[%emt 0:00:03]} 10. Bxe7 {[%emt 0:00:26]} Nxe7 {[%emt 0:00:02]} 11. Be2 {[%emt 0:00:56]} b6 {[%emt 0:00:35]} 12. Bb5 {[%emt 0:01:42]} cxd4 {[%emt 0:02:52]} 13. Nxd4 {[%emt 0:01:07]} Nf6 {[%emt 0:00:04]} 14. O-O {[%emt 0:00:55]} Bb7 {[%emt 0:00:14]} 15. Be2 {[%emt 0:00:42]} Qb8 {[%emt 0:05:14]} 16. Qb3 {[%emt 0:00:57]} Ned5 {[%emt 0:00:31]} 17. Bf3 {[%emt 0:02:38]} Nxc3 {[%emt 0:00:03]} 18. Qxc3 {[%emt 0:00:53]} Bxf3 {[%emt 0:00:04]} 19. Nxf3 {[%emt 0:00:26]} Rc8 {[%emt 0:00:02]} 20. Qa3 {[%emt 0:00:57]} Qb7 {[%emt 0:00:17]} 21. h3 1/2-1/2